fUSD/lending_fUSD_20260301
["ID","MTS","AMOUNT","RATE_DAILY","PERIOD"]
[406978773,1772400516862,-250.0,0.000105,2]
[406978774,1772400516890,-185.75407414,0.00010939,2]
[406978775,1772400516919,-250.0,0.00011,2]
[406978776,1772400516947,-193.0,0.00011,2]
[406978777,1772400516975,-2194.48185172,0.00011,2]
[406978778,1772400517215,-2805.51814828,0.00011,2]
[406978779,1772400519963,-500.0,0.00011039,2]
[406978780,1772400519995,-431.4814748,0.00011039,2]
[406978781,1772400520024,-200.0,0.00011039,2]
[406978782,1772400520053,-300.0,0.00011045,2]
[406978783,1772400520082,-2845.6870504,0.00011046,2]
[406978784,1772400520161,-1445.6729496,0.00011046,2]
[406978785,1772400522983,-4291.36,0.00011488,2]
[406978786,1772400523013,-200.0,0.00011587,2]
[406978787,1772400523066,-1017.29,0.0001193,2]
[406978788,1772400526021,-3274.07,0.0001193,2]
[406978789,1772400542191,-500.0,0.0001207,2]
[406978790,1772400542224,-500.0,0.0001207,2]
[406978791,1772400542256,-500.0,0.0001207,2]
[406978792,1772400557597,-379.87411,0.00012173,2]
[406978793,1772400574015,-4291.36,0.00012371,2]
[406978801,1772400631587,-405.21062676,0.00012813,2]
[406978802,1772400631599,-794.78937324,0.00012813,2]
[406978803,1772400631611,-3091.36,0.00012813,2]
[406978804,1772400631622,-204.005975,0.00013012,2]
[406978805,1772400631631,-1200.0,0.00013254,2]
[406978806,1772400631641,-4291.36,0.00013255,2]
[406978807,1772400631651,-300.0,0.00013275,2]
[406978808,1772400631661,-300.0,0.00013276,2]
[406978809,1772400631671,-300.0,0.00013276,2]
[406978810,1772400631682,-250.0,0.00013277,2]
[406978811,1772400631692,-1833.19552017,0.00013277,2]
[406978812,1772400631702,-4291.36,0.00013697,2]
[406978813,1772400631712,-5832.8299848,0.000139,2]
[406978814,1772400631722,-2500.0,0.00014095,2]
[406978815,1772400631731,-2500.0,0.00014095,2]
[406978816,1772400631741,-2500.0,0.00014095,2]
[406978817,1772400631751,-2500.0,0.00014095,2]
[406978818,1772400631761,-2500.0,0.00014095,2]
[406978819,1772400631771,-600.0,0.00014095,2]
[406978820,1772400631780,-600.0,0.00014095,2]
[406978821,1772400631790,-600.0,0.00014095,2]
[406978822,1772400631800,-600.0,0.00014095,2]
[406978823,1772400631810,-600.0,0.00014095,2]
[406978824,1772400631819,-150.67217593,0.00014095,2]
[406978825,1772400631829,-286.24752804,0.00014095,2]
[406978826,1772400631838,-516.0,0.0001411,2]
[406978827,1772400631848,-4291.36,0.00014139,2]
[406978828,1772400631858,-1000.0,0.0001418,2]
[406978829,1772400631867,-174.61919141,0.00014181,2]
[406978830,1772400631877,-578.20924308,0.00014181,2]
[406978831,1772400631887,-644.79446246,0.00014181,2]
[406978832,1772400631896,-668.65185757,0.00014236,2]
[406978833,1772400631906,-693.3919763,0.00014291,2]
[406978834,1772400631916,-719.04747942,0.00014346,2]
[406978835,1772400631926,-745.65223616,0.00014401,2]
[406978836,1772400631936,-773.2413689,0.00014456,2]
[406978837,1772400631945,-801.85129955,0.00014511,2]
[406978838,1772400631955,-185.75407414,0.00014521,2]
[406978839,1772400631964,-831.51979763,0.00014566,2]
[406978840,1772400631975,-1306.0,0.0001458,2]
[406978841,1772400631985,-4291.36,0.00014581,2]
[406978842,1772400631994,-862.28603014,0.00014621,2]
[406978843,1772400632004,-894.19061326,0.00014676,2]
[406978844,1772400632014,-181.08010149,0.00014729,2]
[406978845,1772400632024,-632.76506395,0.00014731,2]
[406978847,1772400632037,-294.510602,0.00014731,2]
[406978848,1772400632047,-961.58486559,0.00014786,2]
[406978850,1772400632057,-150.0,0.00014786,2]
[406978851,1772400632068,-997.16350561,0.00014841,2]
[406978852,1772400632077,-45229.74877401,0.00014922,2]
[406978853,1772400632089,-45303.18902599,0.00014922,2]
[406978854,1772400632098,-575.26,0.00015004,2]
[406978855,1772400632108,-4291.36,0.00015022,2]
[406978856,1772400632118,-7529.23,0.00015047,2]
[406978857,1772400632127,-153.004481,0.0001511,7]
[406978858,1772400632137,-174.09452548,0.00015129,2]
[406978859,1772400632146,-500.0,0.00015242,2]
[406978860,1772400632155,-4975.92,0.00015244,2]
[406978861,1772400632164,-200.0,0.0001526,2]
[406978862,1772400632174,-187.78006525,0.00015277,2]
[406978863,1772400632183,-1500.0,0.00015322,2]
[406978864,1772400632193,-10048.75,0.00015322,2]
[406978865,1772400632202,-4291.36,0.00015464,2]
[406978866,1772400632211,-3988.04020426,0.00015471,2]
[406978867,1772400632223,-11.95979574,0.00015471,2]
[406978868,1772400632234,-1113.18431233,0.0001551,2]
[406978869,1772400632249,-251.4432,0.0001551,2]
[406978870,1772400632260,-781.98694337,0.0001551,2]
[406978871,1772400632271,-1402.22131623,0.0001551,2]
[406978872,1772400632280,-188.16301449,0.0001551,2]
[406978873,1772400632303,-386.10785737,0.0001551,2]
[406978875,1772400637921,-1895.51665775,0.0001551,2]
[406978876,1772400637933,-1703.69307039,0.0001551,2]
[406978877,1772400637942,-1278.0,0.0001561,2]
[406978878,1772400637952,-1211.0,0.0001561,2]
[406978879,1772400637961,-921.0,0.0001561,2]
[406978880,1772400637971,-619.0,0.0001561,2]
[406978881,1772400637981,-2457.0,0.0001561,2]
[406978882,1772400637991,-500.0,0.0001561,2]
[406978883,1772400638000,-194.72792766,0.00015825,2]
[406978884,1772400638009,-4000.0,0.00015858,2]
[406978885,1772400638018,-419.14871672,0.00015884,2]
[406978886,1772400638028,-4291.36,0.00015906,2]
[406978887,1772400638037,-150.0,0.00015909,2]
[406978888,1772400638046,-2100.0,0.00016082,2]
[406978889,1772400638056,-4000.0,0.00016244,2]
[406978890,1772400638066,-900.0,0.00016307,2]
[406978891,1772400638076,-4097.83790808,0.00016348,2]
[406978892,1772400638088,-193.52209192,0.00016348,2]
[406978893,1772400638098,-600.0,0.00016356,2]
[406978894,1772400638107,-500.0,0.00016356,2]
[406978895,1772400638117,-201.93286099,0.00016373,2]
[406978896,1772400638126,-4000.0,0.00016631,2]
[406978897,1772400638135,-165.98,0.00016712,2]
[406978898,1772400638145,-4291.36,0.0001679,2]
[406978900,1772400638154,-474.98,0.00016847,2]
[406978902,1772400638163,-475.03191434,0.00016848,2]
[406978904,1772400638173,-474.98,0.00016848,2]
[406978906,1772400638183,-474.98,0.00016848,2]
[406978908,1772400638193,-474.98,0.00016848,2]
[406978910,1772400638202,-599.60298507,0.0001692,2]
[406978912,1772400638212,-209.40437684,0.00016921,2]
[406978913,1772400638221,-299.99,0.00016922,4]
[406978914,1772400638232,-999.99,0.00016922,2]
[406978915,1772400638242,-500.0,0.00016973,2]
[406978916,1772400638252,-500.0,0.00016973,2]
[406978917,1772400638262,-4000.0,0.00017018,2]
[406978918,1772400638272,-200.0,0.000171,6]
[406978919,1772400638283,-474.98,0.00017174,2]
[406978920,1772400638295,-474.98,0.00017175,2]
[406978921,1772400638307,-152.0,0.00017198,3]
[406978922,1772400638317,-400.0,0.000172,6]
[406978923,1772400638326,-600.0,0.000173,6]
[406978924,1772400638337,-1261.0,0.00017306,2]
[406978925,1772400638349,-1000.0,0.00017372,2]
[406978926,1772400638359,-900.0,0.000174,6]
[406978927,1772400638369,-2100.0,0.00017452,7]
[406978928,1772400638380,-363.48032879,0.00017469,2]
[406978929,1772400638390,-474.98,0.00017488,2]
[406978930,1772400638399,-474.98,0.00017489,2]
[406978931,1772400638409,-1100.0,0.000175,6]
[406978932,1772400638418,-1752.359,0.00017511,2]
[406978933,1772400638428,-172.017,0.00017511,2]
[406978934,1772400638438,-1000.0,0.00017521,2]
[406978935,1772400638448,-200.0,0.000176,6]
[406978936,1772400638457,-947.84089826,0.0001764,2]
[406978937,1772400638467,-1000.0,0.00017645,2]
[406978938,1772400638476,-900.0,0.00017677,2]
[406978939,1772400638487,-150.0,0.00017698,2]
[406978940,1772400638496,-500.0,0.00017698,2]
[406978941,1772400638506,-500.0,0.00017698,2]
[406978942,1772400638515,-500.0,0.00017698,2]
[406978943,1772400638524,-500.0,0.00017698,2]
[406978944,1772400638534,-500.0,0.00017698,2]
[406978945,1772400638543,-150.0,0.00017698,2]
[406978946,1772400638553,-150.0,0.00017698,2]
[406978947,1772400638562,-150.0,0.00017698,2]
[406978948,1772400638572,-500.0,0.00017698,2]
[406978949,1772400638581,-150.0,0.00017698,2]
[406978950,1772400638591,-500.0,0.00017698,2]
[406978951,1772400638603,-150.0,0.00017698,2]
[406978952,1772400638615,-150.0,0.00017698,2]
[406978953,1772400638630,-200.0,0.000177,6]
[406978954,1772400638644,-600.0,0.00017726,7]
[406978955,1772400638654,-500.0,0.00017726,7]
[406978956,1772400638663,-150.0,0.00017753,2]
[406978957,1772400638673,-500.0,0.00017753,2]
[406978958,1772400638682,-500.0,0.00017753,2]
[406978959,1772400638703,-500.0,0.00017753,2]
[406978960,1772400638713,-500.0,0.00017753,2]
[406978961,1772400638722,-500.0,0.00017753,2]
[406978962,1772400638738,-150.0,0.00017753,2]
[406978963,1772400638760,-625.46692687,0.00017753,2]
[406978964,1772400638774,-500.0,0.00017753,2]
[406978965,1772400638783,-150.0,0.00017753,2]
[406978966,1772400638793,-150.0,0.00017753,2]
[406978967,1772400638803,-19819.4579794,0.0001777,2]
[406978968,1772400638812,-2500.0,0.000178,2]
[406978969,1772400638822,-3940.86593448,0.000178,2]
[406978970,1772400638831,-5000.0,0.000178,2]
[406978971,1772400638842,-153.78331427,0.000178,2]
[406978972,1772400638853,-669.15730404,0.000178,2]
[406978973,1772400638863,-245.81151491,0.000178,2]
[406978974,1772400638872,-200.0,0.000178,6]
[406978975,1772400638882,-200.0,0.00017808,2]
[406978976,1772400638892,-500.0,0.00017808,2]
[406978977,1772400638902,-500.0,0.00017808,2]
[406978978,1772400638912,-500.0,0.00017808,2]
[406978979,1772400638921,-500.0,0.00017808,2]
[406978980,1772400638931,-500.0,0.00017808,2]
[406978981,1772400638941,-200.0,0.00017808,2]
[406978982,1772400638951,-404.0,0.00017808,2]
[406978983,1772400638961,-200.0,0.00017808,2]
[406978984,1772400638970,-150.0,0.00017808,2]
[406978985,1772400638980,-500.0,0.00017808,2]
[406978986,1772400638990,-800.0,0.00017808,2]
[406978987,1772400639000,-153.78331427,0.00017813,2]
[406978988,1772400639010,-153.78331427,0.00017825,2]
[406978989,1772400639020,-6769.0,0.00017835,2]
[406978990,1772400639031,-153.78331427,0.00017838,2]
[406978991,1772400639052,-153.78331427,0.0001785,2]
[406978992,1772400639074,-669.15730404,0.0001785,2]
[406978993,1772400639085,-500.0,0.00017862,2]
[406978994,1772400639097,-153.78331427,0.00017863,2]
[406978995,1772400639108,-500.0,0.00017863,2]
[406978996,1772400639118,-153.78331427,0.00017875,2]
[406978997,1772400639129,-153.78331427,0.00017888,2]
[406978998,1772400639140,-151.0,0.00017897,2]
[406978999,1772400639149,-344.90819028,0.00017899,2]
[406979000,1772400639160,-522.07661742,0.00017899,2]
[406979001,1772400639170,-500.0,0.00017899,2]
[406979002,1772400639182,-296.07156768,0.00017899,2]
[406979003,1772400639194,-500.0,0.00017899,2]
[406979004,1772400639215,-500.0,0.00017899,2]
[406979005,1772400639237,-500.0,0.00017899,2]
[406979006,1772400639257,-293.3696809,0.00017899,2]
[406979007,1772400639276,-500.0,0.00017899,2]
[406979008,1772400639286,-500.0,0.00017899,2]
[406979009,1772400639296,-500.0,0.00017899,2]
[406979010,1772400639308,-500.0,0.00017899,2]
[406979011,1772400639318,-500.0,0.00017899,2]
[406979012,1772400639327,-500.0,0.00017899,2]
[406979013,1772400639336,-500.0,0.00017899,2]
[406979014,1772400639346,-500.0,0.00017899,2]
[406979015,1772400639355,-500.0,0.00017899,2]
[406979016,1772400639365,-500.0,0.00017899,2]
[406979017,1772400639377,-500.0,0.00017899,2]
[406979018,1772400639386,-500.0,0.00017899,2]
[406979019,1772400639395,-500.0,0.00017899,2]
[406979020,1772400639404,-500.0,0.00017899,2]
[406979021,1772400639414,-500.0,0.00017899,2]
[406979022,1772400639423,-500.0,0.00017899,2]
[406979023,1772400639433,-500.0,0.00017899,2]
[406979024,1772400639442,-500.0,0.00017899,2]
[406979025,1772400639452,-500.0,0.00017899,2]
[406979026,1772400639608,-500.0,0.00017899,2]
[406979027,1772400639618,-500.0,0.00017899,2]
[406979028,1772400639627,-500.0,0.00017899,2]
[406979030,1772400639637,-500.0,0.00017899,2]
[406979031,1772400639646,-399.0678364,0.00017899,2]
[406979032,1772400639655,-500.0,0.00017899,2]
[406979033,1772400639664,-500.0,0.00017899,2]
[406979034,1772400639674,-500.0,0.00017899,2]
[406979035,1772400639687,-500.0,0.00017899,2]
[406979036,1772400639697,-500.0,0.00017899,2]
[406979037,1772400639706,-500.0,0.00017899,2]
[406979038,1772400639715,-500.0,0.00017899,2]
[406979039,1772400639725,-226.98909573,0.00017899,2]
[406979040,1772400639735,-300.0,0.00017899,2]
[406979041,1772400639745,-500.0,0.000179,2]
[406979042,1772400639754,-21942.61876519,0.000179,2]
[406979043,1772400639968,-3500.0,0.0001561,2]
[406979044,1772400639978,-200.0,0.00016792,2]
[406979045,1772400639988,-91.0,0.000178,2]
[406979046,1772400639999,-490.7231731,0.000178,2]
[406979047,1772400640138,-305.64255864,0.000178,2]
[406979048,1772400640255,-38.95857688,0.000178,2]
[406979049,1772400640265,-747.19390895,0.0001782,2]
[406979050,1772400640277,-179.13039964,0.0001782,2]
[406979051,1772400640287,-109.29690047,0.00017899,2]
[406979052,1772400640303,-1098.70309953,0.00017899,2]
[406979053,1772400640314,-571.79690047,0.000179,2]
[406979054,1772400640489,-400.33861918,0.0001784,2]
[406979085,1772400643040,-525.98568941,0.0001784,2]
[406979086,1772400643050,-926.32430859,0.0001786,2]
[406979087,1772400643059,-317729.61309371,0.000179,2]
[406979088,1772400643070,-500050.0,0.000179,2]
[406979193,1772400645770,-500.0,9.9e-05,2]
[406979194,1772400645780,-926.32430859,0.0001788,2]
[406979195,1772400645790,-581218.37820218,0.000179,2]
[406979196,1772400645801,-79370.994,0.000179,2]
[406979197,1772400645827,-3284.15,0.000179,2]
[406979198,1772400645842,-533.8,0.000179,2]
[406979199,1772400645885,-552.8612,0.000179,2]
[406979207,1772400709744,-203.47071582,0.00012459,2]
[406979208,1772401258099,-161.26,0.00012169,2]
[406979209,1772401305907,-1401.887,0.00012459,2]
[406979210,1772401306090,-172.017,0.00012459,2]
[406979218,1772401831742,-160.89206129,0.00012513,2]
[406979219,1772401831752,-177.54075837,0.000126,2]
[406979220,1772401831762,-208.55448337,0.000126,2]
[406979221,1772401831771,-83.49345687,0.000126,2]
[406979222,1772401831783,-134.82010696,0.000126,2]
[406979223,1772401831793,-227.40720911,0.000126,2]
[406979224,1772401831802,-151.95157194,0.00012602,2]
[406979225,1772401831812,-1186.05894797,0.00012612,2]
[406979226,1772401831828,-3881.78321118,0.00012612,2]
[406979227,1772401831864,-183025.60134938,0.00012612,2]
[406979228,1772401831876,-7736.43523442,0.00012612,2]
[406979229,1772401831887,-91556.50389806,0.00012612,2]
[406979230,1772401831980,-12866.93230243,0.00012612,2]
[406979242,1772401837849,-753.25136983,0.00012612,2]
[406979243,1772401837860,-24681.72602813,0.00012612,2]
[406979244,1772401837915,-417.21872824,0.00012612,2]
[406979245,1772401837928,-13900.26956289,0.00012612,2]
[406979247,1772401840096,-288.43471881,0.00012612,2]
[406979248,1772401840376,-1108.07942968,0.00012612,2]
[406979255,1772401842976,-794257.30739959,0.00012612,2]
[406979258,1772401843167,-5659.60037088,0.00012612,2]
[406979265,1772401845758,-360.38269579,0.00012612,2]
[406979266,1772401845871,-3987.0,0.00012612,2]
[406979271,1772401908481,-1121.51,0.0001236,2]
[406979272,1772401908511,-172.017,0.0001236,2]
[406979274,1772402416100,157.02,7.758e-05,2]
[406979275,1772402416182,157.02,8.728e-05,2]
[406979284,1772402603046,-157.02,9.698e-05,2]
[406979285,1772402603073,-1493.32940967,9.899e-05,2]
[406979286,1772402603100,-260.84148062,0.000101,2]
[406979287,1772402603129,-157.02,0.00010668,2]
[406979288,1772402603156,-863.58821942,0.00010668,2]
[406979289,1772402603295,-3822.37178058,0.00010668,2]
[406979290,1772402615103,-314.04,0.00010668,2]
[406979291,1772402615133,-2300.2212766,0.00011439,2]
[406979292,1772402615166,-157.02,0.00011637,2]
[406979293,1772402615200,-324.2676468,0.00012412,2]
[406979294,1772402615283,-3808.9121532,0.00012412,2]
[406979295,1772402651986,-2325.1441,0.00012412,2]
[406979296,1772402654877,1157.585495,0.0001235,2]
[406979297,1772402662919,315.807671,0.00012129,2]
[406979298,1772402862556,-8526.616834,0.00012412,2]
[406979299,1772402862758,-10000.01,0.00012412,2]
[406979300,1772402862879,-10000.01,0.00012412,2]
[406979301,1772402863003,-10000.01,0.00012412,2]
[406979302,1772402863121,-10000.01,0.00012412,2]
[406979303,1772402871410,-10000.01,0.00012412,2]
[406979304,1772402871534,-10000.01,0.00012412,2]
[406979305,1772402871644,-10000.01,0.00012412,2]
[406979306,1772402871798,-10000.01,0.00012412,2]
[406979307,1772402871906,-10000.01,0.00012412,2]
[406979316,1772403031876,-1744.44215705,0.0001,2]
[406979317,1772403031886,-50.78618384,0.0001,2]
[406979319,1772403031898,-181.21381616,0.0001,2]
[406979321,1772403031907,-337.0,0.0001,2]
[406979323,1772403031917,-1276.26368715,0.0001031,2]
[406979324,1772403031928,-1802.32662843,0.0001031,2]
[406979325,1772403031939,-500.0,0.0001031,2]
[406979326,1772403031951,-1421.40968442,0.0001031,2]
[406979327,1772403031961,-131.57031558,0.0001062,2]
[406979328,1772403031973,-41.30390219,0.0001062,2]
[406979329,1772403031983,-242.84812996,0.00010887,2]
[406979330,1772403032006,-94.15187004,0.00010887,2]
[406979331,1772403032016,-300.0,0.00010999,2]
[406979332,1772403032026,-611.21210316,0.00010999,2]
[406979333,1772403032037,-588.78789684,0.00010999,2]
[406979334,1772403032047,-41.9654989,0.00011,2]
[406979336,1772403032058,-4958.0345011,0.00011,2]
[406979337,1772403032068,-195.0,0.00011,2]
[406979339,1772403032079,-3185.55904103,0.00011398,2]
[406979341,1772403032088,-339.02054005,0.00011431,2]
[406979343,1772403032098,-24685.8,0.00011808,2]
[406979345,1772403032107,-173.106465,0.00011977,2]
[406979348,1772403032117,-379.05908,0.00011981,2]
[406979351,1772403032127,-1200.0,0.00012099,2]
[406979353,1772403032136,-367.0,0.00012339,2]
[406979357,1772403032146,-13621.34886235,0.00012402,2]
[406979359,1772403032155,-174.91920002,0.00012402,2]
[406979360,1772403032164,-150.0,0.00012411,2]
[406979363,1772403032174,-300.0,0.00012411,2]
[406979365,1772403032183,-32625.19485601,0.00012412,2]
[406979369,1772403032195,-2034.57176181,0.00012412,2]
[406979372,1772403032206,-71410.89265057,0.00012412,2]
[406979386,1772403038017,-2615.92995068,0.00012412,2]
[406979387,1772403038131,-1441.65226089,0.00012412,2]
[406979388,1772403038143,-867.29626824,0.00012412,2]
[406979421,1772403043184,-331.36472516,0.00012411,2]
[406979422,1772403043194,-1314708.63527513,0.00012412,2]
[406979425,1772403046087,-975769.12014267,0.00012412,2]
[406979426,1772403046102,-897.208,0.00012511,2]
[406979427,1772403046111,-172.018,0.00012511,2]
[406979428,1772403046122,-88443.5717,0.00012512,2]
[406979429,1772403046132,-1000.0,0.00012512,2]
[406979430,1772403046142,-2500.0,0.00012512,2]
[406979431,1772403046152,-3375.97379836,0.00012512,2]
[406979432,1772403046162,-2967.13026716,0.00012512,2]
[406979433,1772403046173,-500.0,0.00012521,2]
[406979434,1772403046183,-2552.38670581,0.00012567,2]
[406979435,1772403046192,-18784.4987244,0.00012581,2]
[406979436,1772403046202,-151.0,0.00012605,2]
[406979437,1772403046212,-151.0,0.00012605,2]
[406979438,1772403046222,-151.0,0.00012605,2]
[406979439,1772403046231,-151.0,0.00012605,2]
[406979440,1772403046241,-151.0,0.00012605,2]
[406979441,1772403046250,-151.0,0.00012605,2]
[406979442,1772403046260,-157.02,0.00012607,2]
[406979443,1772403046270,-174.26855092,0.00012612,2]
[406979444,1772403046280,-168.04872587,0.00012612,2]
[406979445,1772403046289,-1131.98391739,0.00012612,2]
[406979446,1772403046299,-160.89206127,0.00012767,2]
[406979447,1772403046309,-199.12030604,0.00012767,2]
[406979448,1772403046319,-2487.96,0.00012813,2]
[406979449,1772403046330,-2746.66,0.00012867,2]
[406979450,1772403046340,-1500.0,0.00012873,2]
[406979451,1772403046350,-4677.14211885,0.00012913,2]
[406979452,1772403046360,-9775.16950051,0.00012913,2]
[406979453,1772403046370,-10978.31568799,0.00012913,2]
[406979454,1772403046380,-11467.85529712,0.00012913,2]
[406979455,1772403046390,-12181.46187555,0.00012913,2]
[406979456,1772403046399,-500.0,0.00012986,2]
[406979457,1772403046409,-2552.38670581,0.0001316,2]
[406979458,1772403046419,-488.0,0.00013227,2]
[406979459,1772403046428,-329.0,0.00013254,2]
[406979460,1772403046438,-702.0,0.0001327,2]
[406979461,1772403046448,-35941.0,0.00013346,2]
[406979462,1772403046459,-150.0,0.00013504,2]
[406979463,1772403046469,-157.02,0.00013577,2]
[406979464,1772403046479,-420.0,0.00013619,2]
[406979465,1772403046490,-150.0,0.00013642,2]
[406979466,1772403046500,-250.0,0.00013652,2]
[406979467,1772403046510,-300.0,0.00013652,2]
[406979468,1772403046520,-200.0,0.00013699,2]
[406979469,1772403046531,-600.0,0.00013751,2]
[406979471,1772403046541,-600.0,0.00013751,2]
[406979473,1772403046551,-600.0,0.00013751,2]
[406979475,1772403046561,-600.0,0.00013751,2]
[406979477,1772403046571,-600.0,0.00013751,2]
[406979479,1772403046581,-2552.38670581,0.00013752,2]
[406979481,1772403046591,-250.0,0.00013753,2]
[406979483,1772403046601,-500.0,0.00013918,2]
[406979485,1772403046611,-516.0,0.0001411,2]
[406979487,1772403046622,-4191.3882086,0.00014176,2]
[406979488,1772403046631,-2552.38670581,0.00014345,2]
[406979489,1772403046642,-500.0,0.00014411,2]
[406979490,1772403046651,-160.89206127,0.00014478,2]
[406979491,1772403046661,-935.2251222,0.00014532,2]
[406979492,1772403046670,-157.02,0.00014547,2]
[406979493,1772403046679,-266.52,0.00014561,2]
[406979494,1772403046689,-2552.38670581,0.00014937,2]
[406979495,1772403046699,-250.0,0.00015,2]
[406979496,1772403046710,-174.09452548,0.00015029,2]
[406979497,1772403046721,-215.48,0.00015068,2]
[406979498,1772403046732,-3500.0,0.00015095,2]
[406979499,1772403046743,-1041.0,0.00015095,2]
[406979500,1772403046753,-1340.0,0.00015095,2]
[406979501,1772403046763,-619.0,0.00015095,2]
[406979502,1772403046773,-1600.0,0.00015149,2]
[406979503,1772403046783,-1521.68,0.00015173,2]
[406979504,1772403046792,-161.26,0.00015212,2]
[406979505,1772403046802,-500.0,0.0001526,2]
[406979506,1772403046812,-152.62,0.00015274,2]
[406979507,1772403046822,-2360.28,0.00015343,2]
[406979508,1772403046832,-921.0,0.00015463,2]
[406979509,1772403046842,-1211.0,0.00015463,2]
[406979510,1772403046852,-2457.0,0.00015463,2]
[406979511,1772403046862,-5985.0,0.00015463,2]
[406979512,1772403046871,-413.0,0.00015463,2]
[406979513,1772403046881,-157.02,0.00015517,2]
[406979515,1772403046891,-2552.38670581,0.0001553,2]
[406979516,1772403046901,-166.66,0.00015578,2]
[406979517,1772403046911,-150.0,0.000156,2]
[406979518,1772403046920,-150.0,0.000156,2]
[406979519,1772403046930,-150.0,0.000156,2]
[406979520,1772403046940,-150.0,0.000156,2]
[406979521,1772403046950,-150.0,0.000156,2]
[406979522,1772403046959,-150.0,0.000156,2]
[406979523,1772403046969,-166.66,0.00015906,2]
[406979524,1772403046979,-5416.0,0.00016004,2]
[406979525,1772403046989,-1600.0,0.00016082,2]
[406979526,1772403046998,-2552.38670581,0.00016122,2]
[406979527,1772403047008,-160.89206127,0.00016189,2]
[406979528,1772403047022,-1000.0,0.00016194,2]
[406979529,1772403047032,-166.66,0.00016234,2]
[406979531,1772403047190,-773.04,0.00016289,2]
[406979532,1772403047201,-500.0,0.00016356,2]
[406979533,1772403047211,-500.0,0.00016356,2]
[406979534,1772403047221,-292.98,0.00016398,2]
[406979535,1772403047230,-3240.0,0.00016429,2]
[406979536,1772403047241,-2000.0,0.00016438,2]
[406979537,1772403047251,-215.48,0.00016438,2]
[406979538,1772403047263,-1000.0,0.00016438,2]
[406979539,1772403047273,-1158.0,0.00016534,2]
[406979540,1772403047283,-166.66,0.00016562,2]
[406979541,1772403047293,-1000.0,0.00016712,2]
[406979542,1772403047302,-165.98,0.00016712,2]
[406979543,1772403047312,-2552.38670581,0.00016715,2]
[406979544,1772403047322,-152.62,0.00016801,2]
[406979545,1772403047331,-166.66,0.0001689,2]
[406979546,1772403047342,-500.0,0.00016973,2]
[406979547,1772403047352,-1000.0,0.00016986,2]
[406979548,1772403047362,-300.0,0.00017,2]
[406979549,1772403047372,-1600.0,0.00017043,2]
[406979550,1772403047382,-578.20924308,0.00017052,2]
[406979551,1772403047393,-644.79446246,0.00017052,2]
[406979552,1772403047403,-668.65185757,0.00017107,2]
[406979553,1772403047413,-45540.80141432,0.0001711,2]
[406979554,1772403047423,-693.3919763,0.00017162,2]
[406979555,1772403047434,-719.04747942,0.00017217,2]
[406979556,1772403047444,-166.66,0.00017218,2]
[406979557,1772403047454,-1000.0,0.0001726,2]
[406979558,1772403047464,-745.65223616,0.00017272,2]
[406979559,1772403047475,-2552.38670581,0.00017307,2]
[406979560,1772403047485,-500.0,0.00017315,2]
[406979561,1772403047494,-773.2413689,0.00017327,2]
[406979562,1772403047504,-801.85129955,0.00017382,2]
[406979563,1772403047514,-831.51979763,0.00017437,2]
[406979564,1772403047524,-1600.0,0.00017452,7]
[406979565,1772403047534,-862.28603014,0.00017492,2]
[406979566,1772403047544,-500.0,0.00017521,2]
[406979567,1772403047554,-1000.0,0.00017534,2]
[406979568,1772403047564,-894.19061326,0.00017547,2]